[Event "January 9 Early 2024"]
[Site "https://www.chess.com"]
[Date "2024.01.11"]
[Round "7"]
[White "Giri, Anish"]
[Black "Indjic, Aleksandar"]
[Result "1-0"]
[Board "211"]
[TimeControl "180+1"]
[WhiteFideId "24116068"]
[BlackFideId "911925"]
[WhiteElo "3008"]
[BlackElo "2885"]
[WhiteTeam "NED"]
[BlackTeam "SRB"]
[WhiteClock "0:00:08"]
[BlackClock "0:00:12"]

1. e4 {[%clk 0:03:00]}  d5 {[%clk 0:02:57]} 2. exd5 {[%clk 0:03:00]}  Qxd5 {[%clk 0:02:58]} 3. Nc3 {[%clk 0:03:01]}  Qa5 {[%clk 0:02:58]} 4. d4 {[%clk 0:03:01]}  Nf6 {[%clk 0:02:58]} 5. Nf3 {[%clk 0:03:01]}  Bf5 {[%clk 0:02:55]} 6. Bc4 {[%clk 0:02:48]}  e6 {[%clk 0:02:53]} 7. Bd2 {[%clk 0:02:44]}  Bb4 {[%clk 0:02:50]} 8. Qe2 {[%clk 0:02:32]}  O-O {[%clk 0:02:33]} 9. O-O-O {[%clk 0:02:22]}  Nc6 {[%clk 0:02:24]} 10. Kb1 {[%clk 0:01:47]}  Rad8 {[%clk 0:01:53]} 11. a3 {[%clk 0:01:48]}  Bxa3 {[%clk 0:01:35]} 12. bxa3 {[%clk 0:01:22]}  Qxa3 {[%clk 0:01:34]} 13. Na2 {[%clk 0:01:08]}  b5 {[%clk 0:00:53]} 14. Bc1 {[%clk 0:00:27]}  Qa4 {[%clk 0:00:52]} 15. Bd3 {[%clk 0:00:27]}  Nd5 {[%clk 0:00:51]} 16. Bxf5 {[%clk 0:00:23]}  exf5 {[%clk 0:00:51]} 17. Bb2 {[%clk 0:00:23]}  Ncb4 {[%clk 0:00:46]} 18. Nc1 {[%clk 0:00:20]}  Nb6 {[%clk 0:00:29]} 19. c3 {[%clk 0:00:19]}  N4d5 {[%clk 0:00:28]} 20. Qc2 {[%clk 0:00:20]}  Qa6 {[%clk 0:00:27]} 21. Ne5 {[%clk 0:00:18]}  Nc4 {[%clk 0:00:22]} 22. Rhe1 {[%clk 0:00:17]}  f6 {[%clk 0:00:18]} 23. Ned3 {[%clk 0:00:17]}  Na3+ {[%clk 0:00:12]} 24. Bxa3 {[%clk 0:00:17]}  Qxa3 {[%clk 0:00:13]} 25. Nb3 {[%clk 0:00:09]}  a5 {[%clk 0:00:11]} 26. Qb2 {[%clk 0:00:06]}  Qa4 {[%clk 0:00:11]} 27. Nbc5 {[%clk 0:00:03]}  Qc4 {[%clk 0:00:11]} 28. Rc1 {[%clk 0:00:04]}  a4 {[%clk 0:00:10]} 29. Qa2 {[%clk 0:00:04]}  Rb8 {[%clk 0:00:09]} 30. Ka1 {[%clk 0:00:03]}  Kh8 {[%clk 0:00:10]} 31. Qxc4 {[%clk 0:00:03]}  bxc4 {[%clk 0:00:11]} 32. Nb2 {[%clk 0:00:03]}  Rfe8 {[%clk 0:00:08]} 33. Nxc4 {[%clk 0:00:01]}  Rxe1 {[%clk 0:00:08]} 34. Rxe1 {[%clk 0:00:02]}  Nxc3 {[%clk 0:00:08]} 35. Rc1 {[%clk 0:00:03]}  Nd5 {[%clk 0:00:08]} 36. Na5 {[%clk 0:00:01]}  h5 {[%clk 0:00:08]} 37. Nc6 {[%clk 0:00:01]}  Ra8 {[%clk 0:00:08]} 38. Kb2 {[%clk 0:00:01]}  a3+ {[%clk 0:00:09]} 39. Ka2 {[%clk 0:00:02]}  Re8 {[%clk 0:00:09]} 40. Kxa3 {[%clk 0:00:01]}  Re2 {[%clk 0:00:09]} 41. Nd3 {[%clk 0:00:02]}  Rd2 {[%clk 0:00:09]} 42. Ncb4 {[%clk 0:00:02]}  Nxb4 {[%clk 0:00:09]} 43. Nxb4 {[%clk 0:00:03]}  Rxf2 {[%clk 0:00:09]} 44. Rxc7 {[%clk 0:00:03]}  Rxg2 {[%clk 0:00:10]} 45. d5 {[%clk 0:00:04]}  Rxh2 {[%clk 0:00:10]} 46. d6 {[%clk 0:00:04]}  Rd2 {[%clk 0:00:11]} 47. d7 {[%clk 0:00:05]}  Kh7 {[%clk 0:00:10]} 48. Nc6 {[%clk 0:00:05]}  h4 {[%clk 0:00:11]} 49. d8=Q {[%clk 0:00:06]}  Rxd8 {[%clk 0:00:11]} 50. Nxd8 {[%clk 0:00:07]}  Kh6 {[%clk 0:00:11]} 51. Ne6 {[%clk 0:00:07]}  h3 {[%clk 0:00:11]} 52. Nxg7 {[%clk 0:00:06]}  f4 {[%clk 0:00:10]} 53. Nf5+ {[%clk 0:00:06]}  Kg5 {[%clk 0:00:11]} 54. Nd4 {[%clk 0:00:07]}  Kg4 {[%clk 0:00:11]} 55. Rg7+ {[%clk 0:00:07]}  Kh5 {[%clk 0:00:12]} 56. Nf3 {[%clk 0:00:07]}  Kh6 {[%clk 0:00:12]} 57. Rg4 {[%clk 0:00:07]}  Kh5 {[%clk 0:00:12]} 58. Rh4+ {[%clk 0:00:07]}  Kg6 {[%clk 0:00:12]} 59. Rxh3 {[%clk 0:00:08]} 1-0

[Event "January 9 Early 2024"]
[Site "https://www.chess.com"]
[Date "2024.01.11"]
[Round "7"]
[White "Rosenberg, Evan S"]
[Black "Kuhn, Clement"]
[Result "1/2-1/2"]
[Board "212"]
[TimeControl "180+1"]
[WhiteFideId "2019299"]
[BlackFideId "36099775"]
[WhiteElo "2397"]
[BlackElo "2570"]
[WhiteTeam "USA"]
[BlackTeam "FRA"]
[WhiteClock "0:00:05"]
[BlackClock "0:00:08"]

1. d4 {[%clk 0:03:00]}  Nf6 {[%clk 0:02:58]} 2. Nf3 {[%clk 0:03:00]}  c5 {[%clk 0:02:56]} 3. d5 {[%clk 0:02:57]}  b5 {[%clk 0:02:55]} 4. e4 {[%clk 0:02:55]}  Nxe4 {[%clk 0:02:54]} 5. Bd3 {[%clk 0:02:50]}  Nf6 {[%clk 0:02:53]} 6. Bxb5 {[%clk 0:02:44]}  g6 {[%clk 0:02:53]} 7. O-O {[%clk 0:02:42]}  Bg7 {[%clk 0:02:53]} 8. c4 {[%clk 0:02:39]}  O-O {[%clk 0:02:54]} 9. h3 {[%clk 0:02:39]}  d6 {[%clk 0:02:53]} 10. Re1 {[%clk 0:02:37]}  Bd7 {[%clk 0:02:32]} 11. Nc3 {[%clk 0:02:14]}  Bxb5 {[%clk 0:02:27]} 12. Nxb5 {[%clk 0:02:10]}  Nbd7 {[%clk 0:02:28]} 13. Rb1 {[%clk 0:02:07]}  Nb6 {[%clk 0:02:26]} 14. b3 {[%clk 0:02:07]}  a6 {[%clk 0:02:13]} 15. Nc3 {[%clk 0:02:04]}  a5 {[%clk 0:02:14]} 16. a4 {[%clk 0:02:04]}  Nbd7 {[%clk 0:02:10]} 17. Bd2 {[%clk 0:02:00]}  Re8 {[%clk 0:02:05]} 18. Nb5 {[%clk 0:02:00]}  Nb8 {[%clk 0:01:56]} 19. Bc3 {[%clk 0:01:58]}  Na6 {[%clk 0:01:56]} 20. Qd2 {[%clk 0:01:45]}  Nb4 {[%clk 0:01:56]} 21. Re2 {[%clk 0:01:45]}  Qd7 {[%clk 0:01:41]} 22. Rbe1 {[%clk 0:01:44]}  Rab8 {[%clk 0:01:39]} 23. Re3 {[%clk 0:01:34]}  Bh6 {[%clk 0:01:30]} 24. Qd1 {[%clk 0:00:45]}  Bxe3 {[%clk 0:01:29]} 25. Rxe3 {[%clk 0:00:46]}  Qf5 {[%clk 0:01:22]} 26. Qd2 {[%clk 0:00:45]}  Nfxd5 {[%clk 0:01:20]} 27. cxd5 {[%clk 0:00:39]}  Nxd5 {[%clk 0:01:21]} 28. Rd3 {[%clk 0:00:36]}  Nf4 {[%clk 0:01:14]} 29. Re3 {[%clk 0:00:33]}  Nd5 {[%clk 0:01:05]} 30. Re1 {[%clk 0:00:27]}  Nxc3 {[%clk 0:01:03]} 31. Qxc3 {[%clk 0:00:25]}  Qd7 {[%clk 0:00:40]} 32. Qxa5 {[%clk 0:00:24]}  e5 {[%clk 0:00:38]} 33. Qd2 {[%clk 0:00:22]}  e4 {[%clk 0:00:36]} 34. Nh2 {[%clk 0:00:19]}  d5 {[%clk 0:00:36]} 35. Ng4 {[%clk 0:00:17]}  Kg7 {[%clk 0:00:28]} 36. Qc3+ {[%clk 0:00:17]}  d4 {[%clk 0:00:28]} 37. Qxc5 {[%clk 0:00:17]}  f5 {[%clk 0:00:25]} 38. Nh2 {[%clk 0:00:12]}  d3 {[%clk 0:00:25]} 39. Nf1 {[%clk 0:00:12]}  Rec8 {[%clk 0:00:24]} 40. Qe5+ {[%clk 0:00:11]}  Kg8 {[%clk 0:00:24]} 41. Rd1 {[%clk 0:00:09]}  Qf7 {[%clk 0:00:24]} 42. Ne3 {[%clk 0:00:09]}  Qxb3 {[%clk 0:00:23]} 43. Nd6 {[%clk 0:00:08]}  Rd8 {[%clk 0:00:20]} 44. Kh2 {[%clk 0:00:07]}  Qxa4 {[%clk 0:00:20]} 45. Qe6+ {[%clk 0:00:06]}  Kh8 {[%clk 0:00:18]} 46. Qf6+ {[%clk 0:00:05]}  Kg8 {[%clk 0:00:18]} 47. Nd5 {[%clk 0:00:05]}  Rd7 {[%clk 0:00:11]} 48. Ne7+ {[%clk 0:00:03]}  Rxe7 {[%clk 0:00:11]} 49. Qxe7 {[%clk 0:00:04]}  Qxd1 {[%clk 0:00:07]} 50. Qf7+ {[%clk 0:00:04]}  Kh8 {[%clk 0:00:07]} 51. Qf6+ {[%clk 0:00:03]}  Kg8 {[%clk 0:00:08]} 52. Qf7+ {[%clk 0:00:04]}  Kh8 {[%clk 0:00:08]} 53. Qf6+ {[%clk 0:00:04]}  Kg8 {[%clk 0:00:08]} 54. Qf7+ {[%clk 0:00:05]} 1/2-1/2

[Event "January 9 Early 2024"]
[Site "https://www.chess.com"]
[Date "2024.01.11"]
[Round "7"]
[White "Vincenti, Leonardo"]
[Black "Vakhidov, Shahzod"]
[Result "1-0"]
[Board "213"]
[TimeControl "180+1"]
[WhiteFideId "28550820"]
[BlackFideId "14205270"]
[WhiteElo "2235"]
[BlackElo "2507"]
[WhiteTeam "ITA"]
[BlackTeam "UZB"]
[WhiteClock "0:00:03"]
[BlackClock "0:00:05"]

1. e4 {[%clk 0:03:00]}  c5 {[%clk 0:02:57]} 2. Nf3 {[%clk 0:03:00]}  g6 {[%clk 0:02:57]} 3. c4 {[%clk 0:02:53]}  Bg7 {[%clk 0:02:57]} 4. d4 {[%clk 0:02:54]}  cxd4 {[%clk 0:02:58]} 5. Nxd4 {[%clk 0:02:53]}  Nc6 {[%clk 0:02:57]} 6. Be3 {[%clk 0:02:50]}  Nf6 {[%clk 0:02:57]} 7. Nc3 {[%clk 0:02:46]}  O-O {[%clk 0:02:57]} 8. Be2 {[%clk 0:02:43]}  d6 {[%clk 0:02:57]} 9. f3 {[%clk 0:02:42]}  Bd7 {[%clk 0:02:53]} 10. O-O {[%clk 0:02:38]}  Nxd4 {[%clk 0:02:52]} 11. Bxd4 {[%clk 0:02:38]}  a5 {[%clk 0:02:53]} 12. b3 {[%clk 0:02:29]}  Bc6 {[%clk 0:02:53]} 13. Nd5 {[%clk 0:02:24]}  Bxd5 {[%clk 0:02:50]} 14. cxd5 {[%clk 0:02:22]}  Nd7 {[%clk 0:02:49]} 15. Bb5 {[%clk 0:02:15]}  Bxd4+ {[%clk 0:02:46]} 16. Qxd4 {[%clk 0:02:16]}  Nc5 {[%clk 0:02:44]} 17. Rab1 {[%clk 0:01:48]}  Qb6 {[%clk 0:02:43]} 18. Bc4 {[%clk 0:01:46]}  Qb4 {[%clk 0:02:40]} 19. Rfd1 {[%clk 0:01:39]}  b5 {[%clk 0:02:25]} 20. Be2 {[%clk 0:01:34]}  Qxd4+ {[%clk 0:02:12]} 21. Rxd4 {[%clk 0:01:34]}  Rfb8 {[%clk 0:02:07]} 22. b4 {[%clk 0:01:14]}  axb4 {[%clk 0:02:06]} 23. Rdxb4 {[%clk 0:01:15]}  Rxa2 {[%clk 0:02:03]} 24. Bxb5 {[%clk 0:01:15]}  Rd2 {[%clk 0:02:01]} 25. Bf1 {[%clk 0:01:11]}  Rxb4 {[%clk 0:02:00]} 26. Rxb4 {[%clk 0:01:11]}  f5 {[%clk 0:02:01]} 27. exf5 {[%clk 0:01:01]}  gxf5 {[%clk 0:02:01]} 28. Rf4 {[%clk 0:01:01]}  Nd7 {[%clk 0:01:45]} 29. Rxf5 {[%clk 0:00:54]}  Kg7 {[%clk 0:01:39]} 30. h4 {[%clk 0:00:48]}  Ne5 {[%clk 0:01:37]} 31. f4 {[%clk 0:00:40]}  Nd7 {[%clk 0:01:08]} 32. Rg5+ {[%clk 0:00:36]}  Kf7 {[%clk 0:01:07]} 33. h5 {[%clk 0:00:26]}  Nf6 {[%clk 0:01:03]} 34. h6 {[%clk 0:00:26]}  Rd1 {[%clk 0:00:53]} 35. Kf2 {[%clk 0:00:20]}  Kf8 {[%clk 0:00:33]} 36. Ke2 {[%clk 0:00:04]}  Rd4 {[%clk 0:00:18]} 37. Ke3 {[%clk 0:00:04]}  Rd1 {[%clk 0:00:18]} 38. Ke2 {[%clk 0:00:04]}  Rxd5 {[%clk 0:00:18]} 39. Rxd5 {[%clk 0:00:03]}  Nxd5 {[%clk 0:00:19]} 40. Kf3 {[%clk 0:00:04]}  Kf7 {[%clk 0:00:15]} 41. Bc4 {[%clk 0:00:04]}  e6 {[%clk 0:00:14]} 42. Bxd5 {[%clk 0:00:04]}  exd5 {[%clk 0:00:15]} 43. Ke3 {[%clk 0:00:04]}  Kf6 {[%clk 0:00:07]} 44. g4 {[%clk 0:00:03]}  Kg6 {[%clk 0:00:05]} 45. g5 {[%clk 0:00:03]}  Kf5 {[%clk 0:00:05]} 46. Kd4 {[%clk 0:00:03]} 1-0

[Event "January 9 Early 2024"]
[Site "https://www.chess.com"]
[Date "2024.01.11"]
[Round "7"]
[White "Soraas, Torben"]
[Black "Novak, Ratko"]
[Result "1/2-1/2"]
[Board "214"]
[TimeControl "180+1"]
[WhiteFideId "1503529"]
[BlackFideId "14511827"]
[WhiteElo "2283"]
[BlackElo "2426"]
[WhiteTeam "NOR"]
[BlackTeam "CRO"]
[WhiteClock "0:00:04"]
[BlackClock "0:00:05"]

1. e4 {[%clk 0:03:00]}  d5 {[%clk 0:02:59]} 2. exd5 {[%clk 0:02:59]}  c6 {[%clk 0:02:58]} 3. d4 {[%clk 0:02:58]}  cxd5 {[%clk 0:02:58]} 4. Bd3 {[%clk 0:02:58]}  Nc6 {[%clk 0:02:58]} 5. c3 {[%clk 0:02:58]}  e5 {[%clk 0:02:56]} 6. dxe5 {[%clk 0:02:58]}  Nxe5 {[%clk 0:02:56]} 7. Qe2 {[%clk 0:02:53]}  Qe7 {[%clk 0:02:56]} 8. Bc2 {[%clk 0:02:53]}  Bg4 {[%clk 0:02:52]} 9. Qe3 {[%clk 0:02:41]}  f5 {[%clk 0:02:40]} 10. Ba4+ {[%clk 0:02:29]}  Kf7 {[%clk 0:02:29]} 11. Ne2 {[%clk 0:02:10]}  Nf6 {[%clk 0:02:24]} 12. O-O {[%clk 0:02:03]}  Nc4 {[%clk 0:02:18]} 13. Qxe7+ {[%clk 0:01:59]}  Bxe7 {[%clk 0:02:19]} 14. Nd4 {[%clk 0:01:56]}  Bc5 {[%clk 0:02:08]} 15. Be3 {[%clk 0:01:27]}  Nxb2 {[%clk 0:02:05]} 16. Bc2 {[%clk 0:01:16]}  g6 {[%clk 0:01:57]} 17. h3 {[%clk 0:01:05]}  Bh5 {[%clk 0:01:56]} 18. Nxf5 {[%clk 0:00:57]}  Bxe3 {[%clk 0:01:46]} 19. Nxe3 {[%clk 0:00:58]}  Rac8 {[%clk 0:01:34]} 20. g4 {[%clk 0:00:55]}  Rhg8 {[%clk 0:01:20]} 21. Bb3 {[%clk 0:00:50]}  Nc4 {[%clk 0:01:15]} 22. Bxc4 {[%clk 0:00:47]}  dxc4 {[%clk 0:01:14]} 23. Nd2 {[%clk 0:00:47]}  b5 {[%clk 0:01:08]} 24. a4 {[%clk 0:00:46]}  b4 {[%clk 0:01:06]} 25. Ndxc4 {[%clk 0:00:43]}  Rb8 {[%clk 0:00:53]} 26. cxb4 {[%clk 0:00:42]}  Rxb4 {[%clk 0:00:53]} 27. Rfb1 {[%clk 0:00:41]}  Rgb8 {[%clk 0:00:28]} 28. Rxb4 {[%clk 0:00:40]}  Rxb4 {[%clk 0:00:28]} 29. a5 {[%clk 0:00:35]}  g5 {[%clk 0:00:13]} 30. gxh5 {[%clk 0:00:34]}  Nxh5 {[%clk 0:00:13]} 31. Rd1 {[%clk 0:00:29]}  Nf4 {[%clk 0:00:13]} 32. Rd7+ {[%clk 0:00:25]}  Kg6 {[%clk 0:00:13]} 33. Ne5+ {[%clk 0:00:22]}  Kf6 {[%clk 0:00:10]} 34. N3g4+ {[%clk 0:00:21]}  Ke6 {[%clk 0:00:09]} 35. Rxh7 {[%clk 0:00:18]}  a6 {[%clk 0:00:10]} 36. Rh6+ {[%clk 0:00:17]}  Kf5 {[%clk 0:00:10]} 37. Kh2 {[%clk 0:00:17]}  Rb3 {[%clk 0:00:09]} 38. Rf6+ {[%clk 0:00:16]}  Ke4 {[%clk 0:00:09]} 39. f3+ {[%clk 0:00:14]}  Kd5 {[%clk 0:00:09]} 40. Rxa6 {[%clk 0:00:14]}  Rb2+ {[%clk 0:00:09]} 41. Kh1 {[%clk 0:00:13]}  Nxh3 {[%clk 0:00:09]} 42. Rb6 {[%clk 0:00:10]}  Ra2 {[%clk 0:00:09]} 43. Rb5+ {[%clk 0:00:09]}  Kd4 {[%clk 0:00:08]} 44. Rb1 {[%clk 0:00:07]}  Rxa5 {[%clk 0:00:07]} 45. Rd1+ {[%clk 0:00:07]}  Kc3 {[%clk 0:00:06]} 46. Rd3+ {[%clk 0:00:06]}  Kc2 {[%clk 0:00:06]} 47. Kh2 {[%clk 0:00:06]}  Nf4 {[%clk 0:00:06]} 48. Rd4 {[%clk 0:00:05]}  Kc3 {[%clk 0:00:05]} 49. Re4 {[%clk 0:00:04]}  Ra2+ {[%clk 0:00:05]} 50. Kh1 {[%clk 0:00:04]}  Ra1+ {[%clk 0:00:05]} 51. Kh2 {[%clk 0:00:04]}  Ra2+ {[%clk 0:00:06]} 52. Kh1 {[%clk 0:00:04]}  Ra1+ {[%clk 0:00:06]} 53. Kh2 {[%clk 0:00:04]}  Ra2+ {[%clk 0:00:05]} 1/2-1/2

[Event "January 9 Early 2024"]
[Site "https://www.chess.com"]
[Date "2024.01.11"]
[Round "7"]
[White "Skiadopoulos, Nikolaos"]
[Black "Yushko, Olga"]
[Result "0-1"]
[Board "215"]
[TimeControl "180+1"]
[WhiteFideId "4200772"]
[BlackFideId "14114500"]
[WhiteElo "1925"]
[BlackElo "2117"]
[WhiteTeam "GRE"]
[BlackTeam "UKR"]
[WhiteClock "0:00:14"]
[BlackClock "0:00:24"]

1. e4 {[%clk 0:03:00]}  e6 {[%clk 0:02:57]} 2. d4 {[%clk 0:03:00]}  d5 {[%clk 0:02:51]} 3. e5 {[%clk 0:02:59]}  c5 {[%clk 0:02:49]} 4. c3 {[%clk 0:02:59]}  Nc6 {[%clk 0:02:48]} 5. Nf3 {[%clk 0:02:59]}  Qb6 {[%clk 0:02:49]} 6. Bd3 {[%clk 0:02:57]}  cxd4 {[%clk 0:02:47]} 7. cxd4 {[%clk 0:02:56]}  Nge7 {[%clk 0:02:47]} 8. O-O {[%clk 0:02:54]}  Nf5 {[%clk 0:02:47]} 9. Bxf5 {[%clk 0:02:54]}  exf5 {[%clk 0:02:47]} 10. Nc3 {[%clk 0:02:54]}  Be6 {[%clk 0:02:46]} 11. b3 {[%clk 0:02:49]}  Be7 {[%clk 0:02:42]} 12. Na4 {[%clk 0:02:42]}  Qd8 {[%clk 0:02:37]} 13. Bb2 {[%clk 0:02:40]}  O-O {[%clk 0:02:37]} 14. Rc1 {[%clk 0:02:39]}  Rc8 {[%clk 0:02:30]} 15. a3 {[%clk 0:02:25]}  b6 {[%clk 0:02:25]} 16. b4 {[%clk 0:02:22]}  h6 {[%clk 0:02:21]} 17. Qd3 {[%clk 0:02:21]}  Qd7 {[%clk 0:02:16]} 18. Nc3 {[%clk 0:02:18]}  Nb8 {[%clk 0:02:12]} 19. Ne2 {[%clk 0:02:17]}  g5 {[%clk 0:02:03]} 20. Rxc8 {[%clk 0:02:14]}  Rxc8 {[%clk 0:02:03]} 21. Rc1 {[%clk 0:02:13]}  Rxc1+ {[%clk 0:02:02]} 22. Bxc1 {[%clk 0:02:12]}  Qc6 {[%clk 0:01:57]} 23. Qc3 {[%clk 0:02:09]}  Qxc3 {[%clk 0:01:54]} 24. Nxc3 {[%clk 0:02:08]}  Nc6 {[%clk 0:01:53]} 25. Nb5 {[%clk 0:02:01]}  g4 {[%clk 0:01:46]} 26. Ne1 {[%clk 0:01:48]}  a6 {[%clk 0:01:45]} 27. Nc7 {[%clk 0:01:43]}  Nxd4 {[%clk 0:01:45]} 28. Kf1 {[%clk 0:01:39]}  a5 {[%clk 0:01:44]} 29. bxa5 {[%clk 0:01:31]}  bxa5 {[%clk 0:01:44]} 30. f3 {[%clk 0:01:29]}  Bc5 {[%clk 0:01:28]} 31. Nd3 {[%clk 0:01:27]}  Bb6 {[%clk 0:01:24]} 32. Nxe6 {[%clk 0:01:26]}  fxe6 {[%clk 0:01:25]} 33. Bxh6 {[%clk 0:01:22]}  gxf3 {[%clk 0:01:24]} 34. Be3 {[%clk 0:01:13]}  fxg2+ {[%clk 0:01:19]} 35. Kxg2 {[%clk 0:01:12]}  Ba7 {[%clk 0:01:14]} 36. Nf4 {[%clk 0:01:11]}  Kf7 {[%clk 0:01:11]} 37. h4 {[%clk 0:01:10]}  Nc6 {[%clk 0:01:08]} 38. Bc1 {[%clk 0:01:01]}  Nxe5 {[%clk 0:01:05]} 39. h5 {[%clk 0:00:59]}  Ng4 {[%clk 0:01:04]} 40. Kg3 {[%clk 0:00:53]}  Bc5 {[%clk 0:00:57]} 41. a4 {[%clk 0:00:51]}  Be3 {[%clk 0:00:56]} 42. Nd3 {[%clk 0:00:42]}  Bxc1 {[%clk 0:00:56]} 43. Nxc1 {[%clk 0:00:41]}  e5 {[%clk 0:00:56]} 44. Nb3 {[%clk 0:00:41]}  d4 {[%clk 0:00:53]} 45. Nxa5 {[%clk 0:00:40]}  d3 {[%clk 0:00:53]} 46. Nc4 {[%clk 0:00:40]}  e4 {[%clk 0:00:51]} 47. Kf4 {[%clk 0:00:40]}  Kf6 {[%clk 0:00:45]} 48. a5 {[%clk 0:00:35]}  Ne5 {[%clk 0:00:42]} 49. Nd2 {[%clk 0:00:26]}  Ng4 {[%clk 0:00:26]} 50. Nxe4+ {[%clk 0:00:21]}  fxe4 {[%clk 0:00:24]} 51. a6 {[%clk 0:00:14]}  d2 {[%clk 0:00:24]} 0-1

[Event "January 9 Early 2024"]
[Site "https://www.chess.com"]
[Date "2024.01.11"]
[Round "7"]
[White "Kuznecova, Marija"]
[Black "Cordoba Roa, Angel Gabriel"]
[Result "0-1"]
[Board "216"]
[TimeControl "180+1"]
[WhiteFideId "11618736"]
[BlackFideId "3957624"]
[WhiteElo "2383"]
[BlackElo "2618"]
[WhiteTeam "LAT"]
[BlackTeam "COL"]
[WhiteClock "0:00:03"]
[BlackClock "0:00:22"]

1. e4 {[%clk 0:03:00]}  e5 {[%clk 0:02:55]} 2. Nf3 {[%clk 0:03:00]}  Nc6 {[%clk 0:02:55]} 3. d4 {[%clk 0:03:01]}  exd4 {[%clk 0:02:55]} 4. Nxd4 {[%clk 0:03:02]}  Nf6 {[%clk 0:02:55]} 5. Nxc6 {[%clk 0:03:02]}  bxc6 {[%clk 0:02:56]} 6. e5 {[%clk 0:03:02]}  Qe7 {[%clk 0:02:56]} 7. Qe2 {[%clk 0:03:03]}  Nd5 {[%clk 0:02:57]} 8. c4 {[%clk 0:03:03]}  Nb6 {[%clk 0:02:57]} 9. Nd2 {[%clk 0:03:04]}  g6 {[%clk 0:02:54]} 10. Ne4 {[%clk 0:03:03]}  Bg7 {[%clk 0:02:49]} 11. Bg5 {[%clk 0:02:46]}  Qb4+ {[%clk 0:02:31]} 12. Qd2 {[%clk 0:02:38]}  Qxd2+ {[%clk 0:02:27]} 13. Kxd2 {[%clk 0:02:39]}  Bxe5 {[%clk 0:02:24]} 14. Re1 {[%clk 0:02:18]}  O-O {[%clk 0:02:15]} 15. Nf6+ {[%clk 0:01:58]}  Bxf6 {[%clk 0:02:14]} 16. Bxf6 {[%clk 0:01:58]}  d6 {[%clk 0:02:14]} 17. h4 {[%clk 0:01:58]}  Be6 {[%clk 0:02:11]} 18. b3 {[%clk 0:01:58]}  Rfe8 {[%clk 0:01:58]} 19. Bd3 {[%clk 0:01:53]}  a5 {[%clk 0:01:53]} 20. h5 {[%clk 0:01:40]}  Nd7 {[%clk 0:01:53]} 21. Bc3 {[%clk 0:01:31]}  Ne5 {[%clk 0:01:36]} 22. Bxe5 {[%clk 0:01:21]}  dxe5 {[%clk 0:01:37]} 23. Rxe5 {[%clk 0:01:21]}  a4 {[%clk 0:01:36]} 24. b4 {[%clk 0:01:20]}  a3 {[%clk 0:01:36]} 25. Kc3 {[%clk 0:01:18]}  Reb8 {[%clk 0:01:29]} 26. hxg6 {[%clk 0:01:18]}  hxg6 {[%clk 0:01:28]} 27. Bxg6 {[%clk 0:01:17]}  Ra4 {[%clk 0:01:29]} 28. Bc2 {[%clk 0:00:36]}  Raxb4 {[%clk 0:01:22]} 29. Bb3 {[%clk 0:00:36]}  R4b7 {[%clk 0:01:13]} 30. f4 {[%clk 0:00:31]}  Kg7 {[%clk 0:01:07]} 31. Rg5+ {[%clk 0:00:29]}  Kf6 {[%clk 0:01:05]} 32. Rh6+ {[%clk 0:00:29]}  Ke7 {[%clk 0:01:06]} 33. f5 {[%clk 0:00:29]}  Bd7 {[%clk 0:01:06]} 34. f6+ {[%clk 0:00:27]}  Kd8 {[%clk 0:01:03]} 35. Rg8+ {[%clk 0:00:25]}  Be8 {[%clk 0:01:03]} 36. c5 {[%clk 0:00:24]}  Kd7 {[%clk 0:00:39]} 37. Rh7 {[%clk 0:00:24]}  Rb5 {[%clk 0:00:37]} 38. Bxf7 {[%clk 0:00:21]}  Rxc5+ {[%clk 0:00:28]} 39. Kd4 {[%clk 0:00:21]}  Bxf7 {[%clk 0:00:26]} 40. Rxf7+ {[%clk 0:00:20]}  Ke6 {[%clk 0:00:27]} 41. Re7+ {[%clk 0:00:08]}  Kxf6 {[%clk 0:00:26]} 42. Rxb8 {[%clk 0:00:08]}  Rd5+ {[%clk 0:00:26]} 43. Kc3 {[%clk 0:00:08]}  Kxe7 {[%clk 0:00:27]} 44. Ra8 {[%clk 0:00:07]}  Rg5 {[%clk 0:00:25]} 45. Rxa3 {[%clk 0:00:06]}  Rxg2 {[%clk 0:00:23]} 46. Ra8 {[%clk 0:00:07]}  Kd6 {[%clk 0:00:22]} 47. a4 {[%clk 0:00:07]}  Kc5 {[%clk 0:00:20]} 48. a5 {[%clk 0:00:06]}  Rg3+ {[%clk 0:00:19]} 49. Kc2 {[%clk 0:00:05]}  Ra3 {[%clk 0:00:20]} 50. Rc8 {[%clk 0:00:04]}  Rxa5 {[%clk 0:00:19]} 51. Rxc7 {[%clk 0:00:04]}  Ra2+ {[%clk 0:00:20]} 52. Kb3 {[%clk 0:00:04]}  Rf2 {[%clk 0:00:20]} 53. Rc8 {[%clk 0:00:04]}  Rf3+ {[%clk 0:00:21]} 54. Kc2 {[%clk 0:00:04]}  Kb5 {[%clk 0:00:20]} 55. Kb2 {[%clk 0:00:04]}  c5 {[%clk 0:00:21]} 56. Kc1 {[%clk 0:00:02]}  Kb4 {[%clk 0:00:21]} 57. Kc2 {[%clk 0:00:02]}  c4 {[%clk 0:00:21]} 58. Kc1 {[%clk 0:00:02]}  Rf2 {[%clk 0:00:21]} 59. Kd1 {[%clk 0:00:02]}  Kb3 {[%clk 0:00:22]} 60. Rb8+ {[%clk 0:00:02]}  Kc3 {[%clk 0:00:22]} 61. Rb1 {[%clk 0:00:03]}  Rf1+ {[%clk 0:00:22]} 0-1